[Event "Polish Youth 1st League 2022"]
[Site "Lublin"]
[Date "2022.06.25"]
[Round "1.17"]
[White "Barwinska, Ewa"]
[Black "Kudlak, Julia"]
[Result "1/2-1/2"]
[ECO "B54"]
[WhiteElo "1825"]
[BlackElo "1654"]
[Annotator "NA RC"]
[PlyCount "105"]
[EventDate "2022.06.24"]
[EventType "team-tourn"]
[EventCountry "POL"]
[SourceTitle "playchess.com"]
[Source "ChessBase"]
[SourceQuality "1"]
[TimeControl "40/5400+30:1800+30"]

1. e4 {[%emt 0:00:03]} c5 {[%emt 0:00:09]} 2. Nf3 {[%emt 0:00:06]} d6 {[%emt 0:00:26]} 3. d4 {[%emt 0:00:10]} cxd4 {[%emt 0:00:06]} 4. Nxd4 {[%emt 0:00:07]} Nf6 {[%emt 0:00:09]} 5. f3 {[%emt 0:00:06]} e5 {[%emt 0:01:48]} 6. Nb3 {[%emt 0:00:11]} d5 {[%emt 0:05:22]} 7. Bg5 {[%emt 0:00:47]} Be6 {[%emt 0:03:33]} 8. Bxf6 {[%emt 0:04:31]} gxf6 {[%emt 0:01:10]} 9. exd5 {[%emt 0:00:45]} Qxd5 {[%emt 0:03:23]} 10. Qxd5 {[%emt 0:01:08]} Bxd5 {[%emt 0:00:08]} 11. Nc3 {[%emt 0:00:24]} Be6 {[%emt 0:00:50]} 12. Nb5 {[%emt 0:00:37]} Na6 {[%emt 0:01:30]} 13. O-O-O {[%emt 0:00:20]} Bh6+ {[%emt 0:07:00]} 14. Kb1 {[%emt 0:00:41]} Ke7 {[%emt 0:01:48]} 15. Nd6 {[%emt 0:13:30]} Rhd8 {[%emt 0:14:05]} 16. Bxa6 {[%emt 0:00:13]} bxa6 {[%emt 0:03:09]} 17. Nb7 {[%emt 0:03:15]} Rd5 {[%emt 0:07:20]} 18. N7c5 {[%emt 0:31:50]} Rg8 {[%emt 0:05:53]} 19. g3 {[%emt 0:07:32]} Rgd8 {[%emt 0:02:25]} 20. Rde1 {[%emt 0:00:53]} Bd2 {[%emt 0:06:33]} 21. Re2 {[%emt 0:03:02]} Bb4 {[%emt 0:01:30]} 22. Nd3 {[%emt 0:01:15]} a5 {[%emt 0:04:11]} 23. a3 {[%emt 0:03:49]} Bd6 {[%emt 0:00:37]} 24. Nd2 {[%emt 0:06:05]} Rb8 {[%emt 0:06:11]} 25. Ka1 {[%emt 0:02:43]} f5 {[%emt 0:04:15]} 26. Nc4 {[%emt 0:02:30]} f6 {[%emt 0:01:24]} 27. Nxd6 {[%emt 0:02:50]} Kxd6 {[%emt 0:00:20]} 28. Rhe1 {[%emt 0:05:28]} Bc8 {[%emt 0:01:34]} 29. Rd2 {[%emt 0:01:33]} Bb7 {[%emt 0:04:45]} 30. Red1 {[%emt 0:03:26]} Rd8 {[%emt 0:01:58]} 31. Kb1 {[%emt 0:02:42]} Kc7 {[%emt 0:03:48]} 32. Kc1 {[%emt 0:00:21]} Kb6 {[%emt 0:01:57]} 33. Ne1 {[%emt 0:02:27]} e4 {[%emt 0:01:16]} 34. Rxd5 {[%emt 0:00:49]} Rxd5 {[%emt 0:00:37]} 35. Rxd5 {[%emt 0:00:16]} Bxd5 {[%emt 0:00:02]} 36. fxe4 {[%emt 0:00:08]} fxe4 {[%emt 0:00:26]} 37. Kd2 {[%emt 0:00:50]} Kc5 {[%emt 0:00:34]} 38. Ng2 {[%emt 0:00:56]} Kd4 {[%emt 0:01:54]} 39. Ne3 {[%emt 0:00:27]} Be6 {[%emt 0:00:28]} 40. c3+ {[%emt 0:00:00]} Ke5 {[%emt 0:00:00]} 41. b4 {[%emt 0:07:29]} axb4 {[%emt 0:10:28]} 42. axb4 {[%emt 0:00:10]} f5 {[%emt 0:02:25]} 43. Ng2 {[%emt 0:01:55]} Bc4 {[%emt 0:06:32]} 44. Ke3 {[%emt 0:02:10]} Bd5 {[%emt 0:02:23]} 45. Nf4 {[%emt 0:03:31]} Bc4 {[%emt 0:00:27]} 46. Ng2 {[%emt 0:02:23]} Bf7 {[%emt 0:01:31]} 47. Nf4 {[%emt 0:00:19]} Bc4 {[%emt 0:00:10]} 48. Kd2 {[%emt 0:05:37]} Bf1 {[%emt 0:01:57]} 49. Ke1 {[%emt 0:01:21]} Bc4 {[%emt 0:01:32]} 50. Kf2 {[%emt 0:00:08]} Bb5 {[%emt 0:00:48]} 51. h3 {[%emt 0:02:21]} Ba6 {[%emt 0:02:33]} 52. Ke3 {[%emt 0:01:04]} Bb5 {[%emt 0:01:01]} 53. Kf2 {[%emt 0:01:54]} 1/2-1/2

[Event "Polish Youth 1st League 2022"]
[Site "Lublin"]
[Date "2022.06.25"]
[Round "1.18"]
[White "Dzierzgowska, Jagoda"]
[Black "Matuszewska, Kinga"]
[Result "1-0"]
[ECO "D00"]
[WhiteElo "1267"]
[BlackElo "1085"]
[Annotator "NA RC"]
[PlyCount "158"]
[EventDate "2022.06.24"]
[EventType "team-tourn"]
[EventCountry "POL"]
[SourceTitle "playchess.com"]
[Source "ChessBase"]
[SourceQuality "1"]
[TimeControl "40/5400+30:1800+30"]

1. d4 {[%emt 0:00:05]} d5 {[%emt 0:00:06]} 2. Bf4 {[%emt 0:01:54]} Nf6 {[%emt 0:01:49]} 3. e3 {[%emt 0:00:52]} Bf5 {[%emt 0:02:04]} 4. Nf3 {[%emt 0:01:08]} e6 {[%emt 0:04:21]} 5. c4 {[%emt 0:02:19]} Bd6 {[%emt 0:07:18]} 6. Bg3 {[%emt 0:01:23]} b6 {[%emt 0:07:26]} 7. Be2 {[%emt 0:04:42]} h6 {[%emt 0:02:16]} 8. Nc3 {[%emt 0:05:40]} a6 {[%emt 0:06:26]} 9. Ne5 {[%emt 0:15:25]} O-O {[%emt 0:05:37]} 10. O-O {[%emt 0:04:29]} c6 {[%emt 0:10:14]} 11. a3 {[%emt 0:07:12]} a5 {[%emt 0:04:52]} 12. Qa4 {[%emt 0:13:57]} Bxe5 {[%emt 0:06:59]} 13. Bxe5 {[%emt 0:01:35]} Nfd7 {[%emt 0:08:02]} 14. Bg3 {[%emt 0:01:46]} Re8 {[%emt 0:02:13]} 15. cxd5 {[%emt 0:03:27]} b5 {[%emt 0:06:07]} 16. Qd1 {[%emt 0:02:13]} exd5 {[%emt 0:02:38]} 17. Bg4 {[%emt 0:08:36]} Bxg4 {[%emt 0:03:24]} 18. Qxg4 {[%emt 0:00:06]} Nf6 {[%emt 0:00:28]} 19. Qf3 {[%emt 0:01:16]} Ne4 {[%emt 0:01:33]} 20. Nxe4 {[%emt 0:00:25]} Rxe4 {[%emt 0:01:31]} 21. Rac1 {[%emt 0:02:22]} Qd7 {[%emt 0:01:41]} 22. Rc2 {[%emt 0:02:08]} Re6 {[%emt 0:02:16]} 23. Qe2 {[%emt 0:05:01]} Qb7 {[%emt 0:01:18]} 24. Rfc1 {[%emt 0:02:17]} Nd7 {[%emt 0:00:37]} 25. b3 {[%emt 0:02:57]} Nb6 {[%emt 0:03:13]} 26. Qg4 {[%emt 0:03:00]} a4 {[%emt 0:02:20]} 27. b4 {[%emt 0:01:31]} Nc4 {[%emt 0:00:25]} 28. Rc3 {[%emt 0:01:14]} Rae8 {[%emt 0:01:06]} 29. h4 {[%emt 0:01:40]} Qc8 {[%emt 0:01:50]} 30. Bf4 {[%emt 0:01:53]} Rg6 {[%emt 0:01:08]} 31. Qxc8 {[%emt 0:00:11]} Rxc8 {[%emt 0:00:02]} 32. g3 {[%emt 0:00:12]} Re8 {[%emt 0:00:47]} 33. Re1 {[%emt 0:00:13]} Rge6 {[%emt 0:01:05]} 34. Kg2 {[%emt 0:00:45]} f6 {[%emt 0:00:33]} 35. h5 {[%emt 0:00:36]} Kf7 {[%emt 0:00:56]} 36. Re2 {[%emt 0:01:03]} Kf8 {[%emt 0:01:21]} 37. Kf3 {[%emt 0:00:21]} Kf7 {[%emt 0:00:34]} 38. Kg2 {[%emt 0:00:13]} Kg8 {[%emt 0:01:08]} 39. Kf3 {[%emt 0:00:46]} Kf7 {[%emt 0:00:49]} 40. Kg2 {[%emt 0:00:00]} Kg8 {[%emt 0:00:00]} 41. Kf3 {[%emt 0:01:16]} Kh7 {[%emt 0:09:34]} 42. g4 {[%emt 0:05:30]} Rc8 {[%emt 0:02:37]} 43. Rd3 {[%emt 0:10:54]} g5 {[%emt 0:03:44]} 44. hxg6+ {[%emt 0:00:37]} Kxg6 {[%emt 0:00:11]} 45. Kg3 {[%emt 0:01:08]} Rh8 {[%emt 0:02:49]} 46. f3 {[%emt 0:03:46]} h5 {[%emt 0:02:31]} 47. Rh2 {[%emt 0:00:48]} Ree8 {[%emt 0:01:30]} 48. Rh4 {[%emt 0:02:26]} hxg4 {[%emt 0:03:43]} 49. Rxg4+ {[%emt 0:00:13]} Kf7 {[%emt 0:00:27]} 50. Kg2 {[%emt 0:04:06]} Rh7 {[%emt 0:01:34]} 51. Kf2 {[%emt 0:01:48]} Rh1 {[%emt 0:01:44]} 52. Rg1 {[%emt 0:00:05]} Reh8 {[%emt 0:00:20]} 53. e4 {[%emt 0:01:33]} Ke6 {[%emt 0:03:01]} 54. Kg2 {[%emt 0:03:01]} R1h4 {[%emt 0:01:36]} 55. Bg3 {[%emt 0:01:59]} Rg8 {[%emt 0:01:33]} 56. Kf2 {[%emt 0:00:30]} Rh7 {[%emt 0:01:33]} 57. exd5+ cxd5 {[%emt 0:01:04]} 58. f4 {[%emt 0:01:35]} f5 {[%emt 0:00:24]} 59. Re1+ {[%emt 0:00:19]} Kd6 {[%emt 0:00:40]} 60. Rg1 {[%emt 0:00:13]} Rgh8 {[%emt 0:00:37]} 61. Kg2 {[%emt 0:00:40]} Rc8 {[%emt 0:00:29]} 62. Rc3 {[%emt 0:00:44]} Re7 {[%emt 0:00:35]} 63. Kf2 {[%emt 0:00:55]} Rcc7 {[%emt 0:00:25]} 64. Re1 {[%emt 0:00:31]} Rxe1 {[%emt 0:00:39]} 65. Kxe1 {[%emt 0:00:04]} Rh7 {[%emt 0:00:07]} 66. Ke2 {[%emt 0:00:37]} Rh1 {[%emt 0:00:29]} 67. Be1 {[%emt 0:00:11]} Rh2+ {[%emt 0:00:52]} 68. Bf2 {[%emt 0:00:19]} Nd2 {[%emt 0:00:32]} 69. Kxd2 {[%emt 0:00:22]} Rxf2+ {[%emt 0:00:05]} 70. Ke3 {[%emt 0:00:09]} Ra2 {[%emt 0:00:30]} 71. Kf3 {[%emt 0:00:35]} Ra1 {[%emt 0:00:40]} 72. Rd3 {[%emt 0:00:48]} Rh1 73. Kg2 {[%emt 0:00:37]} Rc1 {[%emt 0:01:15]} 74. Kf2 {[%emt 0:00:37]} Ke6 {[%emt 0:00:28]} 75. Re3+ {[%emt 0:00:15]} Kf6 {[%emt 0:00:14]} 76. Rg3 {[%emt 0:00:26]} Rd1 {[%emt 0:00:49]} 77. Ke3 {[%emt 0:00:13]} Ra1 {[%emt 0:00:32]} 78. Ke2 {[%emt 0:00:33]} Ra2+ {[%emt 0:00:10]} 79. Ke1 {[%emt 0:00:52]} Ra1+ 1-0

[Event "Polish Youth 1st League 2022"]
[Site "Lublin"]
[Date "2022.06.25"]
[Round "1.19"]
[White "Szlosarczyk, Hubert"]
[Black "Wojdak, Jan"]
[Result "1-0"]
[ECO "D59"]
[WhiteElo "1650"]
[BlackElo "2144"]
[Annotator "RC"]
[PlyCount "113"]
[EventDate "2022.06.24"]
[EventType "team-tourn"]
[EventCountry "POL"]
[SourceTitle "playchess.com"]
[Source "ChessBase"]
[SourceQuality "1"]
[TimeControl "40/5400+30:1800+30"]

1. d4 {[%emt 0:00:34]} d5 {[%emt 0:00:06]} 2. c4 {[%emt 0:01:01]} e6 {[%emt 0:00:07]} 3. Nc3 {[%emt 0:01:05]} Nf6 {[%emt 0:00:05]} 4. Bg5 {[%emt 0:01:34]} Be7 {[%emt 0:00:15]} 5. e3 {[%emt 0:01:50]} h6 {[%emt 0:00:13]} 6. Bh4 {[%emt 0:02:07]} O-O {[%emt 0:00:13]} 7. Nf3 {[%emt 0:01:56]} b6 {[%emt 0:00:34]} 8. cxd5 {[%emt 0:02:27]} Nxd5 {[%emt 0:00:08]} 9. Nxd5 {[%emt 0:08:01]} exd5 {[%emt 0:00:13]} 10. Bxe7 {[%emt 0:00:35]} Qxe7 {[%emt 0:00:04]} 11. Qd2 {[%emt 0:01:26]} Be6 {[%emt 0:00:28]} 12. Bd3 {[%emt 0:01:30]} Rc8 {[%emt 0:00:26]} 13. O-O {[%emt 0:03:09]} c5 {[%emt 0:02:19]} 14. Rac1 {[%emt 0:02:49]} Nd7 {[%emt 0:11:57]} 15. h3 {[%emt 0:05:30]} Nf6 {[%emt 0:09:27]} 16. Qe2 {[%emt 0:08:15]} Rc7 {[%emt 0:05:05]} 17. b3 {[%emt 0:04:24]} a5 {[%emt 0:05:03]} 18. a4 {[%emt 0:02:21]} Qd8 {[%emt 0:01:58]} 19. Rc2 {[%emt 0:07:10]} Ne4 {[%emt 0:10:10]} 20. Rfc1 {[%emt 0:02:14]} Qc8 {[%emt 0:16:43]} 21. Bxe4 {[%emt 0:12:22]} dxe4 {[%emt 0:00:04]} 22. Nd2 {[%emt 0:00:06]} Raa7 {[%emt 0:00:19]} 23. Nc4 {[%emt 0:05:17]} Qa6 {[%emt 0:00:39]} 24. Qf1 {[%emt 0:03:11]} cxd4 {[%emt 0:00:49]} 25. exd4 {[%emt 0:00:12]} Rd7 {[%emt 0:05:19]} 26. Ne5 {[%emt 0:06:47]} Qxf1+ {[%emt 0:01:49]} 27. Kxf1 {[%emt 0:00:01]} Rd5 {[%emt 0:02:20]} 28. Ke2 {[%emt 0:02:58]} Rb7 {[%emt 0:01:36]} 29. Ke3 {[%emt 0:00:42]} Rd8 {[%emt 0:01:39]} 30. Rc3 {[%emt 0:00:57]} Bd5 {[%emt 0:00:44]} 31. Rc8 {[%emt 0:02:45]} Rb8 {[%emt 0:04:14]} 32. Rxb8 {[%emt 0:01:02]} Rxb8 {[%emt 0:00:04]} 33. Nd7 {[%emt 0:00:28]} Rd8 {[%emt 0:02:53]} 34. Nxb6 {[%emt 0:00:51]} Bxb3 {[%emt 0:00:04]} 35. Rb1 {[%emt 0:01:31]} Bc2 {[%emt 0:00:29]} 36. Rc1 {[%emt 0:02:42]} Bd3 {[%emt 0:03:58]} 37. g3 {[%emt 0:01:51]} Rd6 {[%emt 0:00:25]} 38. Rc8+ {[%emt 0:02:54]} Kh7 {[%emt 0:00:01]} 39. Nc4 {[%emt 0:00:14]} Rf6 {[%emt 0:04:14]} 40. Ne5 {[%emt 0:00:00]} Bf1 {[%emt 0:00:00]} 41. h4 {[%emt 0:02:49]} Bg2 {[%emt 0:03:45]} 42. Rc6 {[%emt 0:00:58]} Rxc6 {[%emt 0:02:28]} 43. Nxc6 {[%emt 0:00:01]} Bh3 {[%emt 0:00:51]} 44. Nxa5 {[%emt 0:00:11]} Bd7 {[%emt 0:00:04]} 45. Nc4 {[%emt 0:00:35]} Bxa4 {[%emt 0:00:05]} 46. Kxe4 {[%emt 0:00:21]} Kg8 {[%emt 0:00:07]} 47. Ke5 {[%emt 0:00:40]} f6+ {[%emt 0:02:00]} 48. Kd6 {[%emt 0:00:23]} Kf7 {[%emt 0:00:20]} 49. Ne3 {[%emt 0:00:57]} h5 {[%emt 0:00:38]} 50. d5 {[%emt 0:00:18]} g5 {[%emt 0:00:07]} 51. Nf5 {[%emt 0:01:49]} Bc2 {[%emt 0:00:34]} 52. Nd4 {[%emt 0:01:33]} Ba4 {[%emt 0:01:55]} 53. Kc7 {[%emt 0:00:33]} Kg6 {[%emt 0:02:11]} 54. d6 {[%emt 0:00:39]} Be8 {[%emt 0:00:03]} 55. d7 {[%emt 0:00:59]} Bxd7 {[%emt 0:00:03]} 56. Kxd7 {[%emt 0:00:03]} f5 {[%emt 0:00:03]} 57. f4 {[%emt 0:00:09]} 1-0

[Event "Polish Youth 1st League 2022"]
[Site "Lublin"]
[Date "2022.06.25"]
[Round "1.20"]
[White "Jendrowiak, Maciej"]
[Black "Kozlowski, Franciszek"]
[Result "1-0"]
[ECO "E32"]
[WhiteElo "1713"]
[BlackElo "1607"]
[Annotator "NA RC"]
[PlyCount "83"]
[EventDate "2022.06.24"]
[EventType "team-tourn"]
[EventCountry "POL"]
[SourceTitle "playchess.com"]
[Source "ChessBase"]
[SourceQuality "1"]
[TimeControl "40/5400+30:1800+30"]

1. d4 {[%emt 0:00:05]} Nf6 {[%emt 0:00:14]} 2. c4 {[%emt 0:00:07]} e6 {[%emt 0:02:42]} 3. Nc3 {[%emt 0:00:23]} Bb4 {[%emt 0:00:56]} 4. Qc2 {[%emt 0:02:15]} O-O {[%emt 0:04:10]} 5. Nf3 {[%emt 0:01:20]} d5 {[%emt 0:04:24]} 6. Bg5 {[%emt 0:01:10]} h6 {[%emt 0:05:33]} 7. Bh4 {[%emt 0:00:35]} c5 {[%emt 0:06:14]} 8. e3 {[%emt 0:03:27]} cxd4 {[%emt 0:06:43]} 9. exd4 {[%emt 0:01:27]} Nc6 {[%emt 0:02:12]} 10. a3 {[%emt 0:01:47]} Be7 {[%emt 0:08:21]} 11. c5 {[%emt 0:02:35]} a6 {[%emt 0:12:52]} 12. Bd3 {[%emt 0:03:53]} Nh5 {[%emt 0:04:29]} 13. Bxe7 {[%emt 0:01:23]} Qxe7 {[%emt 0:00:27]} 14. O-O {[%emt 0:00:49]} Nf4 {[%emt 0:01:26]} 15. Rfe1 {[%emt 0:03:23]} Qf6 {[%emt 0:00:50]} 16. Rad1 {[%emt 0:01:26]} Kh8 {[%emt 0:07:10]} 17. Bf1 {[%emt 0:01:23]} Qg6 {[%emt 0:05:33]} 18. Qxg6 {[%emt 0:05:09]} Nxg6 {[%emt 0:00:16]} 19. Na4 {[%emt 0:00:47]} Bd7 {[%emt 0:01:24]} 20. Nb6 {[%emt 0:00:42]} Rad8 {[%emt 0:00:07]} 21. b4 {[%emt 0:00:52]} Na7 {[%emt 0:04:16]} 22. a4 {[%emt 0:02:05]} Nc8 {[%emt 0:02:42]} 23. Nxd7 {[%emt 0:00:30]} Rxd7 {[%emt 0:00:06]} 24. Rb1 {[%emt 0:01:48]} Nce7 {[%emt 0:05:44]} 25. b5 {[%emt 0:05:17]} a5 {[%emt 0:04:12]} 26. h4 {[%emt 0:04:08]} h5 {[%emt 0:04:06]} 27. g3 {[%emt 0:00:29]} b6 {[%emt 0:01:05]} 28. Ng5 {[%emt 0:10:25]} Nf5 {[%emt 0:01:58]} 29. Rbd1 {[%emt 0:02:02]} Re8 {[%emt 0:01:42]} 30. Bd3 {[%emt 0:01:23]} Rde7 {[%emt 0:00:32]} 31. Bxf5 {[%emt 0:00:36]} exf5 {[%emt 0:00:16]} 32. Nxf7+ {[%emt 0:00:14]} Kg8 {[%emt 0:00:24]} 33. Rxe7 {[%emt 0:00:07]} Rxe7 {[%emt 0:00:29]} 34. Nd6 {[%emt 0:00:06]} Nf8 {[%emt 0:02:14]} 35. cxb6 {[%emt 0:00:49]} Re6 {[%emt 0:01:35]} 36. b7 {[%emt 0:00:27]} Nd7 {[%emt 0:00:04]} 37. Nxf5 {[%emt 0:00:05]} Rb6 {[%emt 0:00:36]} 38. Re1 {[%emt 0:01:23]} g6 {[%emt 0:00:40]} 39. Ne7+ {[%emt 0:01:07]} Kf8 {[%emt 0:00:33]} 40. Nxd5 {[%emt 0:00:00]} Rxb7 {[%emt 0:00:00]} 41. Re7 {[%emt 0:01:03]} Rc7 {[%emt 0:00:24]} 42. Kg2 {[%emt 0:00:57]} 1-0

[Event "Polish Youth 1st League 2022"]
[Site "Lublin"]
[Date "2022.06.25"]
[Round "1.21"]
[White "Duda, Szymon"]
[Black "Wierzbicki, Dawid"]
[Result "0-1"]
[ECO "B40"]
[WhiteElo "1707"]
[BlackElo "1556"]
[Annotator "NA RC"]
[PlyCount "112"]
[EventDate "2022.06.24"]
[EventType "team-tourn"]
[EventCountry "POL"]
[SourceTitle "playchess.com"]
[Source "ChessBase"]
[SourceQuality "1"]
[TimeControl "40/5400+30:1800+30"]

1. e4 {[%emt 0:00:04]} c5 {[%emt 0:00:18]} 2. Nf3 {[%emt 0:00:17]} e6 {[%emt 0:00:38]} 3. c4 {[%emt 0:00:34]} a6 {[%emt 0:01:44]} 4. Nc3 {[%emt 0:00:58]} d6 {[%emt 0:01:24]} 5. d4 {[%emt 0:02:11]} cxd4 {[%emt 0:00:10]} 6. Nxd4 {[%emt 0:00:11]} Nf6 {[%emt 0:00:28]} 7. Be2 {[%emt 0:01:49]} Be7 {[%emt 0:00:53]} 8. O-O {[%emt 0:01:58]} O-O {[%emt 0:00:38]} 9. f4 {[%emt 0:08:14]} Nbd7 {[%emt 0:04:07]} 10. Bf3 {[%emt 0:06:08]} Qc7 {[%emt 0:01:15]} 11. Qe2 {[%emt 0:03:29]} Rb8 {[%emt 0:00:46]} 12. g4 {[%emt 0:02:38]} Kh8 {[%emt 0:20:01]} 13. Be3 {[%emt 0:06:01]} b6 {[%emt 0:21:48]} 14. Rac1 {[%emt 0:12:48]} Bb7 {[%emt 0:01:42]} 15. Qg2 {[%emt 0:04:40]} Nc5 {[%emt 0:08:30]} 16. g5 {[%emt 0:03:20]} Ng8 {[%emt 0:00:20]} 17. f5 {[%emt 0:08:04]} e5 {[%emt 0:04:16]} 18. Nb3 {[%emt 0:04:54]} Rfd8 {[%emt 0:05:42]} 19. Nxc5 {[%emt 0:08:25]} bxc5 {[%emt 0:00:26]} 20. Qh3 {[%emt 0:04:16]} f6 {[%emt 0:02:54]} 21. gxf6 {[%emt 0:09:05]} Bxf6 {[%emt 0:00:32]} 22. Bh5 {[%emt 0:01:28]} Qe7 {[%emt 0:01:02]} 23. Rc2 {[%emt 0:02:31]} Bg5 {[%emt 0:01:07]} 24. Bxg5 {[%emt 0:03:46]} Qxg5+ {[%emt 0:00:32]} 25. Rg2 {[%emt 0:00:17]} Qh6 {[%emt 0:00:47]} 26. Qf3 {[%emt 0:01:17]} Qf6 {[%emt 0:01:46]} 27. Kh1 {[%emt 0:02:26]} Rf8 {[%emt 0:00:58]} 28. Rfg1 {[%emt 0:00:57]} Nh6 {[%emt 0:01:20]} 29. Rxg7 {[%emt 0:01:19]} Nxf5 {[%emt 0:00:16]} 30. Rxb7 {[%emt 0:00:45]} Rxb7 {[%emt 0:00:10]} 31. exf5 {[%emt 0:00:34]} Rxb2 {[%emt 0:00:07]} 32. Qg3 {[%emt 0:00:34]} Rb7 {[%emt 0:00:33]} 33. Bf3 {[%emt 0:00:20]} Rg7 {[%emt 0:03:02]} 34. Qxg7+ {[%emt 0:00:36]} Qxg7 {[%emt 0:00:02]} 35. Rxg7 {[%emt 0:00:01]} Kxg7 {[%emt 0:00:02]} 36. Be4 {[%emt 0:00:36]} Rb8 {[%emt 0:01:01]} 37. Kg2 {[%emt 0:00:52]} Rb4 {[%emt 0:00:48]} 38. Bd3 {[%emt 0:00:29]} Rb2+ {[%emt 0:00:08]} 39. Kg3 {[%emt 0:00:11]} Rd2 {[%emt 0:00:11]} 40. Bf1 {[%emt 0:00:00]} Rd4 {[%emt 0:00:00]} 41. Nd5 {[%emt 0:06:56]} Rd2 {[%emt 0:02:47]} 42. a4 {[%emt 0:06:10]} Ra2 {[%emt 0:00:43]} 43. a5 {[%emt 0:02:48]} Rxa5 {[%emt 0:01:36]} 44. f6+ {[%emt 0:00:18]} Kf8 {[%emt 0:00:33]} 45. Be2 {[%emt 0:04:49]} Ra3+ {[%emt 0:00:09]} 46. Kh4 {[%emt 0:03:35]} Ra2 {[%emt 0:00:22]} 47. Bh5 {[%emt 0:04:07]} Rxh2+ {[%emt 0:00:05]} 48. Kg5 {[%emt 0:00:09]} a5 {[%emt 0:03:50]} 49. Nc7 {[%emt 0:01:42]} Rf2 {[%emt 0:01:07]} 50. Ne6+ Kg8 {[%emt 0:00:11]} 51. Be8 {[%emt 0:04:31]} e4 {[%emt 0:00:34]} 52. Bc6 {[%emt 0:01:17]} e3 {[%emt 0:01:01]} 53. Bd5 {[%emt 0:00:43]} Kh8 {[%emt 0:00:19]} 54. Nf4 {[%emt 0:00:48]} Rxf4 {[%emt 0:00:29]} 55. Kxf4 {[%emt 0:00:24]} e2 {[%emt 0:00:02]} 56. f7 {[%emt 0:00:15]} Kg7 {[%emt 0:00:07]} 0-1

[Event "Polish Youth 1st League 2022"]
[Site "Lublin"]
[Date "2022.06.25"]
[Round "1.22"]
[White "Oles, Mateusz"]
[Black "Wajda, Krzysztof"]
[Result "0-1"]
[ECO "C50"]
[WhiteElo "1201"]
[BlackElo "1494"]
[Annotator "NA RC"]
[PlyCount "108"]
[EventDate "2022.06.24"]
[EventType "team-tourn"]
[EventCountry "POL"]
[SourceTitle "playchess.com"]
[Source "ChessBase"]
[SourceQuality "1"]
[TimeControl "40/5400+30:1800+30"]

1. e4 {[%emt 0:00:06]} e5 {[%emt 0:00:04]} 2. Nf3 {[%emt 0:00:13]} Nc6 {[%emt 0:00:05]} 3. Bc4 {[%emt 0:00:33]} Bc5 {[%emt 0:00:05]} 4. O-O {[%emt 0:00:59]} Nf6 {[%emt 0:00:11]} 5. d3 {[%emt 0:00:55]} d6 {[%emt 0:01:37]} 6. a4 {[%emt 0:04:28]} O-O {[%emt 0:02:34]} 7. h3 {[%emt 0:01:27]} h6 {[%emt 0:01:18]} 8. Re1 {[%emt 0:04:40]} Be6 {[%emt 0:02:58]} 9. Bxe6 {[%emt 0:03:22]} fxe6 {[%emt 0:00:04]} 10. c3 {[%emt 0:05:11]} a5 {[%emt 0:04:51]} 11. Qb3 {[%emt 0:02:38]} Qd7 {[%emt 0:02:32]} 12. Be3 {[%emt 0:05:19]} b6 {[%emt 0:05:15]} 13. d4 {[%emt 0:07:35]} exd4 {[%emt 0:00:14]} 14. cxd4 {[%emt 0:00:05]} Bb4 {[%emt 0:00:14]} 15. Bd2 {[%emt 0:00:58]} Bxd2 {[%emt 0:12:22]} 16. Nbxd2 {[%emt 0:00:13]} Rae8 {[%emt 0:16:22]} 17. Rac1 {[%emt 0:13:52]} Rf7 {[%emt 0:04:12]} 18. Re3 {[%emt 0:05:40]} e5 {[%emt 0:05:43]} 19. d5 {[%emt 0:02:57]} Nb4 {[%emt 0:02:03]} 20. Ne1 {[%emt 0:04:46]} Nh5 {[%emt 0:04:30]} 21. Nd3 {[%emt 0:04:16]} Ref8 {[%emt 0:05:04]} 22. Nxb4 {[%emt 0:04:39]} axb4 {[%emt 0:00:38]} 23. Rf3 {[%emt 0:12:02]} Nf4 {[%emt 0:01:11]} 24. Re3 {[%emt 0:05:30]} Nxg2 {[%emt 0:01:28]} 25. Rg3 {[%emt 0:03:03]} Nf4 {[%emt 0:00:16]} 26. Re1 {[%emt 0:02:26]} Nh5 {[%emt 0:02:09]} 27. Rg2 {[%emt 0:02:35]} Qe7 {[%emt 0:01:51]} 28. Qe3 {[%emt 0:02:45]} Qf6 {[%emt 0:05:17]} 29. b3 {[%emt 0:00:58]} Kh8 {[%emt 0:02:54]} 30. Nc4 {[%emt 0:00:34]} Qh4 {[%emt 0:00:28]} 31. Rf1 {[%emt 0:00:38]} Nf4 {[%emt 0:00:39]} 32. Rg3 {[%emt 0:00:17]} Nh5 {[%emt 0:00:21]} 33. Rg4 {[%emt 0:00:33]} Qf6 {[%emt 0:01:11]} 34. Nd2 {[%emt 0:00:20]} Nf4 {[%emt 0:00:31]} 35. Rg3 {[%emt 0:00:52]} Qh4 {[%emt 0:02:34]} 36. Nb1 {[%emt 0:00:31]} Qh5 {[%emt 0:03:47]} 37. Re1 {[%emt 0:00:21]} Ng6 {[%emt 0:01:25]} 38. Qe2 {[%emt 0:00:36]} Nf4 {[%emt 0:03:12]} 39. Qxh5 {[%emt 0:00:20]} Nxh5 {[%emt 0:00:05]} 40. Rg2 {[%emt 0:00:00]} Rf3 {[%emt 0:00:00]} 41. Re3 {[%emt 0:06:25]} Rxe3 {[%emt 0:02:40]} 42. fxe3 {[%emt 0:00:05]} Rf3 {[%emt 0:00:20]} 43. Rc2 {[%emt 0:02:06]} Rxe3 {[%emt 0:00:07]} 44. Nd2 {[%emt 0:00:31]} Rc3 {[%emt 0:00:26]} 45. Rb2 {[%emt 0:02:07]} Rxh3 {[%emt 0:00:35]} 46. Kf2 {[%emt 0:03:14]} Nf4 {[%emt 0:00:29]} 47. Rb1 {[%emt 0:03:06]} Rh2+ {[%emt 0:00:27]} 48. Ke1 {[%emt 0:00:22]} g5 {[%emt 0:02:46]} 49. Kd1 {[%emt 0:01:05]} g4 {[%emt 0:00:33]} 50. Kc2 {[%emt 0:00:43]} g3 {[%emt 0:00:31]} 51. Rg1 {[%emt 0:00:56]} Ne2 {[%emt 0:00:18]} 52. Re1 {[%emt 0:00:43]} Nd4+ {[%emt 0:02:48]} 53. Kc1 {[%emt 0:00:54]} g2 {[%emt 0:00:35]} 54. Kb2 {[%emt 0:03:32]} Rh1 {[%emt 0:00:15]} 0-1